bitfinex/quotes_BTCUSD_20250226
["timestamp","ask_amount","ask_price","bid_price","bid_amount"]
[1740603053170,0.00012251,84627.0,84610.0,0.01472]
[1740603053369,0.09463928,84619.0,84610.0,0.01472]
[1740603053679,0.00012251,84627.0,84610.0,0.01472]
[1740603053680,0.00876212,84614.0,84610.0,0.01472]
[1740603053897,0.177269,84617.0,84610.0,0.01472]
[1740603054112,0.236344,84623.0,84612.0,0.01454085]
[1740603054113,0.00878795,84623.0,84612.0,0.01454085]
[1740603054319,0.00574618,84616.0,84614.0,0.01454085]
[1740603054523,0.00012251,84627.0,84615.0,1.01659493]
[1740603054724,0.0503482,84669.0,84614.0,0.01454085]
[1740603054725,0.01206439,84662.0,84629.0,0.1253]
[1740603054960,0.03559,84690.0,84629.0,0.1253]
[1740603054961,0.081,84725.0,84650.0,0.01454085]
[1740603055112,0.000849,84712.0,84662.0,0.13984085]
[1740603055313,0.000849,84712.0,84661.0,0.37804727]
[1740603055314,0.000849,84712.0,84664.0,0.13984085]
[1740603055500,0.00040853,84673.0,84671.0,0.1253]
[1740603055695,0.00040853,84673.0,84670.0,0.37804727]
[1740603055696,0.000849,84712.0,84672.0,1.01659339]
[1740603055897,0.000849,84712.0,84682.0,0.1253]
[1740603056128,0.000849,84712.0,84684.0,0.1253]
[1740603056129,0.01297765,84712.0,84684.0,0.1253]
[1740603056353,0.177087,84704.0,84703.0,0.02]
[1740603056554,0.01854649,84705.0,84704.0,0.02]
[1740603056720,0.177081,84707.0,84704.0,0.02]
[1740603056917,0.236,84746.0,84715.0,0.02]
[1740603057117,0.177054,84720.0,84716.0,0.0363722]
[1740603057316,0.17706,84717.0,84716.0,0.03472]
[1740603057559,0.17706,84717.0,84716.0,0.01472]
[1740603058139,0.17706,84717.0,84716.0,0.01484257]
[1740603060070,0.17661006,84717.0,84716.0,0.01484257]
[1740603060623,0.18185952,84717.0,84716.0,0.01484257]
[1740603060830,0.00524946,84717.0,84716.0,0.03484257]
[1740603061037,0.00524946,84717.0,84716.0,0.94448342]
[1740603061218,0.01209057,84748.0,84734.0,0.02]
[1740603061506,0.236345,84774.0,84730.0,0.04]
[1740603061507,0.00906995,84747.0,84730.0,0.04]
[1740603061743,0.00906995,84747.0,84716.0,0.06394257]
[1740603061744,0.00906995,84747.0,84740.0,0.02]
[1740603061933,0.2364071,84752.0,84745.0,0.02]
[1740603061934,0.0004221,84752.0,84745.0,0.02]
[1740603062135,0.0004221,84752.0,84746.0,0.32895166]
[1740603062313,0.0004221,84752.0,84747.0,0.01468]
[1740603062515,0.176993,84749.0,84748.0,0.3273]
[1740603063042,0.55504027,84749.0,84748.0,0.27544619]
[1740603063447,0.55504027,84749.0,84748.0,0.16995315]
[1740603064630,0.55504027,84749.0,84748.0,0.12074294]
[1740603064846,0.37804727,84749.0,84714.0,0.02]
[1740603065032,0.37804727,84749.0,84731.0,0.02]
[1740603065238,0.37804727,84749.0,84732.0,0.02]
[1740603065439,0.177007,84742.0,84741.0,0.02]
[1740603065701,0.176999,84746.0,84745.0,0.02]
[1740603067766,0.235994,84748.0,84744.0,0.02]
[1740603067974,0.235999,84746.0,84745.0,0.01468]
[1740603068190,0.00012239,84746.0,84739.0,0.02]
[1740603068390,0.00012239,84746.0,84745.0,0.01468]
[1740603068391,0.17712139,84746.0,84745.0,0.01468]
[1740603068600,0.177016,84738.0,84737.0,0.04]
[1740603068728,0.177016,84738.0,84737.0,0.05468]
[1740603069129,0.177018,84737.0,84736.0,0.3273]
[1740603069792,0.177024,84734.0,84733.0,0.01468]
[1740603069991,0.177045,84724.0,84723.0,0.01468]
[1740603070193,0.37804727,84736.0,84719.0,0.01468]
[1740603070402,0.37804727,84736.0,84708.0,0.3273]
[1740603070403,0.00868577,84725.0,84714.0,0.02]
[1740603070655,0.00868577,84725.0,84715.0,0.02165237]
[1740603070863,0.01854093,84732.0,84720.0,0.02]
[1740603071073,0.01854093,84732.0,84729.0,0.02]
[1740603071312,0.17703,84731.0,84730.0,0.00165206]
[1740603071529,0.177032,84730.0,84729.0,0.02]
[1740603071756,0.236046,84730.0,84724.0,0.02]
[1740603071907,0.177047,84723.0,84722.0,0.3673]
[1740603072153,0.01854093,84732.0,84722.0,0.3673]
[1740603072154,0.177039,84727.0,84726.0,0.02]
[1740603072525,0.01854093,84732.0,84731.0,0.02]
[1740603072740,0.14413928,84782.0,84745.0,0.02]
[1740603072741,0.17712139,84746.0,84745.0,0.02]
[1740603073163,0.235998,84747.0,84743.0,0.02]
[1740603073164,0.177003,84744.0,84743.0,0.02]
[1740603073582,0.235999,84746.0,84734.0,0.02]
[1740603073802,0.177028,84732.0,84731.0,0.3273]
[1740603074003,0.17706,84717.0,84716.0,0.3273]
[1740603074221,0.177062,84716.0,84715.0,0.00942284]
[1740603074430,0.177062,84716.0,84715.0,0.02012239]
[1740603075293,0.0185415,84724.0,84720.0,0.04]
[1740603075569,0.177051,84721.0,84720.0,0.02]
[1740603075764,0.17706,84717.0,84716.0,0.03454085]
[1740603076029,0.177062,84716.0,84715.0,0.00012239]
[1740603076240,0.177062,84716.0,84715.0,0.02012239]
[1740603076465,0.19227951,84716.0,84715.0,0.02012239]
[1740603076669,0.19227951,84716.0,84715.0,0.00012239]
[1740603077066,0.19227951,84716.0,84715.0,0.02012239]
[1740603077320,0.19227951,84716.0,84715.0,0.02944611]
[1740603077544,0.19227951,84716.0,84715.0,0.00944611]
[1740603077748,0.19227951,84716.0,84715.0,0.02944611]
[1740603078213,0.19227951,84716.0,84715.0,0.00944611]
[1740603078444,0.19227951,84716.0,84685.0,0.5478]
[1740603078445,0.17711,84693.0,84692.0,0.02]
[1740603078740,0.177122,84687.0,84686.0,0.3273]
[1740603078976,0.01452064,84716.0,84698.0,0.02]
[1740603079202,0.01452064,84716.0,84714.0,0.02]
[1740603079439,0.09440029,84745.0,84708.0,0.02]
[1740603079663,0.177083,84706.0,84705.0,0.02922085]
[1740603079890,0.177083,84706.0,84705.0,0.3273]
[1740603080125,0.15179657,84744.0,84716.0,0.24127484]
[1740603080365,0.01488607,84720.0,84719.0,0.02]
[1740603080595,0.15221867,84752.0,84725.0,0.02]
[1740603080746,0.177041,84726.0,84725.0,0.02]
[1740603080947,0.177041,84726.0,84716.0,0.24139741]
[1740603080948,0.236047,84729.0,84723.0,0.01468]
[1740603081152,0.177045,84724.0,84723.0,0.03468]
[1740603081352,0.177045,84724.0,84723.0,0.01468]
[1740603081993,0.00876698,84728.0,84725.0,0.02]
[1740603082200,0.01509552,84745.0,84725.0,0.3473]
[1740603082426,0.01509552,84745.0,84744.0,0.02]
[1740603082639,0.235991,84749.0,84741.0,0.3273]
[1740603082867,0.0149276,84748.0,84725.0,0.3273]
[1740603083082,0.177049,84722.0,84721.0,0.01464]
[1740603083304,0.09440029,84747.0,84721.0,0.01464]
[1740603083305,0.09440029,84747.0,84724.0,0.02]
[1740603083518,0.09440029,84747.0,84721.0,0.01464]
[1740603083519,0.177049,84722.0,84721.0,0.01464]
[1740603083745,0.177053,84720.0,84719.0,0.01543825]
[1740603084183,0.236064,84723.0,84706.0,0.3273]
[1740603084184,0.17706,84717.0,84716.0,0.14996906]
[1740603084396,0.17706,84717.0,84716.0,0.15009163]
[1740603085090,0.17706,84717.0,84716.0,0.06918801]
[1740603085332,0.20129439,84719.0,84716.0,0.00811181]
[1740603085550,0.17706,84717.0,84716.0,0.00811181]
[1740603085784,0.22446,84717.0,84716.0,0.00811181]
[1740603085993,0.177156,84671.0,84670.0,0.01464]
[1740603086479,0.09440029,84702.0,84677.0,0.02]
[1740603086715,0.177129,84685.0,84679.0,0.02]
[1740603086913,0.236124,84701.0,84679.0,0.02]
[1740603087141,0.01854821,84696.0,84682.0,0.02]
[1740603087381,0.01854821,84696.0,84687.0,0.02]
[1740603087605,0.01854821,84696.0,84695.0,0.02]
[1740603087822,0.00012223,84701.0,84700.0,0.02]
[1740603088035,0.00012223,84701.0,84700.0,0.36349336]
[1740603088256,0.17721523,84701.0,84700.0,0.3273]
[1740603088696,0.17721523,84701.0,84694.0,0.01464]
[1740603088697,0.00012223,84701.0,84694.0,0.01464]
[1740603089108,0.00012223,84701.0,84700.0,0.02]
[1740603089326,0.00012223,84701.0,84700.0,0.05662547]
[1740603089535,0.00012223,84701.0,84700.0,0.02]
[1740603090035,0.00012223,84701.0,84697.0,0.02]
[1740603090509,0.177097,84699.0,84698.0,0.05663437]
[1740603090759,0.17711,84693.0,84692.0,0.01577321]
[1740603090993,0.17711,84693.0,84692.0,0.01285102]
[1740603091217,0.17211,84693.0,84692.0,0.03285102]
[1740603091663,0.17211,84693.0,84692.0,0.01285102]
[1740603092130,0.17211,84693.0,84692.0,0.00947417]
[1740603092131,0.17711,84693.0,84692.0,0.00947417]
[1740603092851,0.17263804,84693.0,84692.0,0.00947417]
[1740603094024,0.17263804,84693.0,84692.0,0.00951417]
[1740603095177,0.236143,84695.0,84692.0,0.00951417]
[1740603095399,0.17711,84693.0,84692.0,0.00951417]
[1740603096656,0.177145,84676.0,84675.0,0.1047551]
[1740603096815,0.177145,84676.0,84675.0,0.03574843]
[1740603097020,0.177179,84660.0,84659.0,0.3273]
[1740603097225,0.0087718,84681.0,84659.0,0.3273]
[1740603097445,0.0087718,84681.0,84665.0,0.02]
[1740603097620,0.0087718,84681.0,84670.0,0.02]
[1740603097834,0.0087718,84681.0,84671.0,0.02165327]
[1740603098217,0.236088,84715.0,84683.0,0.02]
[1740603098522,0.00012218,84689.0,84683.0,0.02]
[1740603098947,0.00906015,84686.0,84684.0,0.01514447]
[1740603099743,0.00012218,84689.0,84684.0,0.01514447]
[1740603099744,0.01527249,84689.0,84688.0,0.03454085]
[1740603100177,0.00012218,84689.0,84688.0,0.36184085]
[1740603100280,0.177064,84715.0,84689.0,0.01454085]
[1740603100489,0.00878715,84702.0,84700.0,0.02]
[1740603100682,0.00878715,84702.0,84689.0,0.3273]
[1740603100927,0.00878715,84702.0,84692.0,0.02]
[1740603101130,0.00878715,84702.0,84696.0,0.02]
[1740603101330,0.00878715,84702.0,84692.0,0.02]
[1740603101505,0.236124,84701.0,84692.0,0.02]
[1740603101732,0.00878715,84702.0,84692.0,0.02]
[1740603102136,0.01483716,84715.0,84689.0,0.3273]
[1740603102137,0.01483716,84715.0,84700.0,0.02]
[1740603102446,0.177087,84704.0,84700.0,0.02]
[1740603102901,0.01483716,84715.0,84700.0,0.02]
[1740603103105,0.01483716,84715.0,84701.0,0.01501822]
[1740603103313,0.00903648,84703.0,84701.0,0.01501822]
[1740603103678,0.01483716,84715.0,84704.0,0.02]
[1740603103897,0.177077,84709.0,84704.0,0.02]
[1740603104121,0.17709,84703.0,84701.0,0.03501822]
[1740603104323,0.177089,84704.0,84702.0,0.01501822]
[1740603104534,0.177089,84703.0,84702.0,0.01501822]
[1740603104896,0.177089,84703.0,84702.0,0.00970142]
[1740603105099,0.177089,84703.0,84676.0,0.01464]
[1740603105100,0.09440029,84705.0,84676.0,0.01464]
[1740603105361,0.09440029,84705.0,84668.0,0.02]
[1740603105362,0.00904251,84685.0,84668.0,0.02]
[1740603105554,0.24521251,84685.0,84669.0,0.02]
[1740603105723,0.00904251,84685.0,84669.0,0.02]
[1740603105897,0.177154,84672.0,84669.0,0.02]
[1740603106362,0.177153,84673.0,84669.0,0.02]
[1740603106595,0.00904251,84685.0,84671.0,0.00096918]
[1740603106803,0.177154,84672.0,84671.0,0.00096918]
[1740603107232,0.09440029,84683.0,84654.0,0.3273]
[1740603107233,0.177189,84655.0,84654.0,0.3273]
[1740603107456,0.09440029,84683.0,84653.0,0.0207185]
[1740603107457,0.0001223,84672.0,84653.0,0.0207185]
[1740603107672,0.0001223,84672.0,84658.0,0.02]
[1740603107878,0.236208,84671.0,84655.0,0.02]
[1740603108083,0.177179,84660.0,84655.0,0.02]
[1740603108282,0.0001223,84672.0,84662.0,0.02]
[1740603108487,0.17717,84664.0,84662.0,0.02]
[1740603108690,0.0001223,84672.0,84656.0,0.02]
[1740603108863,0.177191,84654.0,84653.0,0.0007185]
[1740603109311,0.1859754,84654.0,84653.0,0.0007185]
[1740603109515,0.0001223,84672.0,84653.0,0.0007185]
[1740603109721,0.01855287,84671.0,84656.0,0.02]
[1740603109925,0.01855287,84671.0,84665.0,0.02]
[1740603110136,0.177166,84667.0,84665.0,0.02]
[1740603110349,0.01855287,84671.0,84665.0,0.02]
[1740603110556,0.00878885,84667.0,84657.0,0.00939124]
[1740603110763,0.177183,84658.0,84657.0,0.00939124]
[1740603111141,0.177189,84655.0,84654.0,0.3273]
[1740603111309,0.177191,84654.0,84653.0,0.0007185]
[1740603111806,0.177191,84654.0,84653.0,0.0015655]
[1740603113253,0.177206,84647.0,84646.0,0.07248313]
[1740603113418,0.177229,84636.0,84635.0,0.01565827]
[1740603113628,0.177237,84632.0,84620.0,0.05029827]
[1740603114238,0.11988,85007.0,84620.0,0.04751951]
[1740603114397,0.177251,84626.0,84620.0,0.03565827]
[1740603114604,0.15179657,84672.0,84637.0,0.02]
[1740603114801,0.00884479,84651.0,84648.0,0.02]
[1740603115000,0.00884479,84651.0,84638.0,0.32895396]
[1740603115001,0.10910276,84678.0,84642.0,0.0773]
[1740603115207,0.177208,84647.0,84642.0,0.0773]
[1740603115383,0.177209,84646.0,84642.0,0.0773]
[1740603115591,0.1772,84650.0,84646.0,0.02]
[1740603115787,0.00898726,84653.0,84646.0,0.02]
[1740603115991,0.00910951,84653.0,84646.0,0.02]
[1740603116188,0.00910951,84653.0,84649.0,0.02]
[1740603116386,0.00910951,84653.0,84647.0,0.02]
[1740603116589,0.00910951,84653.0,84648.0,0.02]
[1740603116590,0.177202,84649.0,84648.0,0.02]
[1740603118053,0.177212,84644.0,84643.0,0.00938415]
[1740603118267,0.00910951,84653.0,84643.0,0.00938415]
[1740603118489,0.00910951,84653.0,84643.0,0.02]
[1740603118653,0.177209,84646.0,84643.0,0.02]
[1740603118856,0.00910951,84653.0,84648.0,0.02]
[1740603119230,0.177202,84649.0,84648.0,0.02]
[1740603119607,0.177206,84647.0,84646.0,0.02]
[1740603119967,0.00012225,84653.0,84652.0,0.08174085]
[1740603120175,0.00012225,84653.0,84652.0,0.09799426]
[1740603120402,0.00012225,84653.0,84652.0,0.08339426]
[1740603120587,0.00010707,84685.0,84663.0,0.02]
[1740603120803,0.0149921,84685.0,84684.0,0.02]
[1740603121130,0.00022946,84685.0,84684.0,0.37644085]
[1740603121268,0.01511549,84685.0,84684.0,0.37644085]
[1740603121482,0.00022946,84685.0,84684.0,0.38580658]
[1740603121674,0.00022946,84685.0,84684.0,0.35666573]
[1740603121881,0.17735646,84685.0,84684.0,0.35666573]
[1740603122078,0.00022946,84685.0,84684.0,0.35666573]
[1740603122554,0.19210869,84685.0,84684.0,0.35666573]
[1740603122963,0.01498169,84685.0,84684.0,0.33666573]
[1740603123164,0.19210869,84685.0,84684.0,0.33666573]
[1740603123462,0.19210869,84685.0,84684.0,0.00936573]
[1740603123805,0.01498169,84685.0,84654.0,0.03565827]
[1740603124013,0.177187,84656.0,84655.0,0.3473]
[1740603124360,0.01498169,84685.0,84669.0,0.02]
[1740603124361,0.0148593,84685.0,84669.0,0.02]
[1740603124572,0.0148593,84685.0,84674.0,0.02]
[1740603124780,0.00905093,84677.0,84664.0,0.02]
[1740603124980,0.177177,84661.0,84660.0,0.0146]
[1740603125180,0.00905093,84677.0,84660.0,0.0146]
[1740603125406,0.00905093,84677.0,84660.0,0.00040853]
[1740603125607,0.177175,84662.0,84661.0,0.02]
[1740603126116,0.00905093,84677.0,84669.0,0.02]
[1740603126300,0.15179657,84709.0,84676.0,0.02]
[1740603126484,0.23618,84681.0,84676.0,0.02]
[1740603126842,0.09102669,84709.0,84669.0,0.3273]
[1740603126843,0.00895851,84679.0,84669.0,0.3273]
[1740603127050,0.177158,84670.0,84669.0,0.3473]
[1740603127182,0.177158,84670.0,84669.0,0.3273]
[1740603128767,0.177158,84670.0,84669.0,0.32263454]
[1740603128992,0.236208,84672.0,84660.0,0.00040853]
[1740603129194,0.177177,84661.0,84660.0,0.00040853]
[1740603129742,0.236201,84674.0,84660.0,0.00040853]
[1740603129942,0.236185,84680.0,84671.0,0.02]
[1740603130268,0.236197,84675.0,84671.0,0.02]
[1740603130512,0.0832,84709.0,84671.0,0.02]
[1740603130513,0.09102669,84719.0,84677.0,0.02]
[1740603130734,0.09102669,84719.0,84692.0,0.02]
[1740603130735,0.0146917,84701.0,84692.0,0.02]
[1740603130985,0.0146917,84701.0,84700.0,0.02]
[1740603131196,0.00902791,84705.0,84700.0,0.02]
[1740603131430,0.01495463,84701.0,84700.0,0.02]
[1740603131639,0.01854589,84724.0,84713.0,0.02]
[1740603131878,0.01854589,84724.0,84718.0,0.02]
[1740603132084,0.177055,84719.0,84718.0,0.02]
[1740603132480,0.19156511,84719.0,84718.0,0.02]
[1740603133028,0.177074,84710.0,84709.0,0.02]
[1740603133227,0.01451011,84719.0,84710.0,0.02]
[1740603133438,0.00049348,84722.0,84710.0,0.02]
[1740603133638,0.00049348,84722.0,84699.0,0.0455]
[1740603133858,0.00049348,84722.0,84681.0,0.10513533]
[1740603133859,0.177114,84691.0,84689.0,0.0146]
[1740603134063,0.09440029,84717.0,84690.0,0.0637559]
[1740603134264,0.177092,84702.0,84690.0,0.02]
[1740603134438,0.01509371,84722.0,84697.0,0.02]
[1740603134753,0.01509371,84722.0,84705.0,0.02]
[1740603135002,0.01509371,84722.0,84710.0,0.02]
[1740603135173,0.01521619,84722.0,84717.0,0.02]
[1740603135511,0.17708,84707.0,84706.0,0.02]
[1740603135638,0.01521619,84722.0,84701.0,0.19991696]
[1740603135639,0.177091,84702.0,84701.0,0.21991696]
[1740603135865,0.177089,84703.0,84702.0,0.00108024]
[1740603136271,0.177089,84703.0,84702.0,0.02108024]
[1740603136474,0.177089,84703.0,84702.0,0.00108024]
[1740603137507,0.177122,84687.0,84686.0,0.0146]
[1740603138165,0.177122,84687.0,84672.0,0.19991696]
[1740603138166,0.0204234,84719.0,84672.0,0.19991696]
[1740603138408,0.0204234,84719.0,84667.0,0.0487]
[1740603138409,0.177158,84670.0,84669.0,0.0146]
[1740603138538,0.236203,84673.0,84666.0,0.03488597]
[1740603138741,0.177164,84667.0,84666.0,0.01488597]
[1740603139584,0.177166,84666.0,84665.0,0.10513533]
[1740603139781,0.177193,84653.0,84652.0,0.000847]
[1740603140354,0.177208,84647.0,84644.0,0.00930724]
[1740603140598,0.17721,84645.0,84644.0,0.00971577]
[1740603140801,0.01855544,84654.0,84651.0,0.02]
[1740603141114,0.01432918,84666.0,84651.0,0.02]
[1740603141318,0.236187,84679.0,84651.0,0.03456]
[1740603141480,0.177183,84658.0,84651.0,0.03456]
[1740603141676,0.236195,84676.0,84651.0,0.03456]
[1740603142076,0.236241,84660.0,84651.0,0.03456]
[1740603142282,0.236195,84676.0,84651.0,0.03456]
[1740603142476,0.236224,84666.0,84651.0,0.03456]
[1740603142926,0.25064683,84676.0,84651.0,0.03456]
[1740603143160,0.177191,84655.0,84651.0,0.03456]
[1740603143357,0.177194,84653.0,84651.0,0.03456]
[1740603143558,0.177193,84654.0,84651.0,0.03456]
[1740603143758,0.177196,84652.0,84651.0,0.0346]
[1740603144193,0.177196,84652.0,84651.0,0.0146]
[1740603144387,0.177193,84654.0,84651.0,4e-05]
[1740603144506,0.01449957,84676.0,84651.0,4e-05]
[1740603144712,0.177196,84652.0,84651.0,4e-05]
[1740603146675,0.236223,84666.0,84651.0,4e-05]
[1740603146676,0.11440029,84697.0,84652.0,0.02]
[1740603146880,0.01855573,84658.0,84653.0,0.01454085]
[1740603147098,0.01855573,84658.0,84657.0,0.03454085]
[1740603147305,0.01434545,84677.0,84676.0,0.16574085]
[1740603147510,0.0185503,84699.0,84698.0,0.02]
[1740603147917,0.177058,84718.0,84702.0,0.02]
[1740603148120,0.19561075,84714.0,84703.0,0.02]
[1740603148331,0.177079,84708.0,84703.0,0.02]
[1740603148534,0.01854475,84714.0,84703.0,0.02]
[1740603148739,0.00012246,84708.0,84691.0,0.00930724]
[1740603148923,0.17711,84693.0,84692.0,0.02]
[1740603149264,0.236143,84695.0,84692.0,0.02]
[1740603149265,0.177108,84694.0,84692.0,0.02]
[1740603149468,0.17711,84693.0,84692.0,0.02]
[1740603149670,0.177112,84692.0,84691.0,0.00930724]
[1740603149870,0.18600421,84692.0,84691.0,1e-08]
[1740603150080,0.18600421,84692.0,84666.0,0.19991696]
[1740603150081,0.00889221,84692.0,84666.0,0.19991696]
[1740603150291,0.177137,84680.0,84679.0,0.00929724]
[1740603151113,0.177156,84671.0,84670.0,0.08803533]
[1740603151548,0.177156,84671.0,84670.0,0.0338959]
[1740603152976,0.177156,84671.0,84644.0,0.00165383]
[1740603152977,0.00889221,84692.0,84674.0,0.02]
[1740603153202,0.00012241,84692.0,84691.0,0.02]
[1740603153601,0.00012241,84692.0,84691.0,0.03454085]
[1740603155494,0.00012241,84692.0,84691.0,0.03456]
[1740603155697,0.00012241,84692.0,84691.0,0.0346]
[1740603156573,0.17723441,84692.0,84691.0,0.0346]
[1740603156769,0.00012241,84692.0,84691.0,0.02004]
[1740603157272,0.17723441,84692.0,84691.0,4e-05]
[1740603158053,0.00012241,84692.0,84691.0,4e-05]
[1740603158265,0.17723441,84692.0,84691.0,4e-05]
[1740603158674,0.17723441,84692.0,84662.0,0.0472]
[1740603158675,0.177156,84671.0,84662.0,0.0472]
[1740603159065,0.09440029,84684.0,84665.0,0.02]
[1740603159273,0.177156,84671.0,84657.0,0.0008466]
[1740603159686,0.177183,84658.0,84657.0,0.0008466]
[1740603160339,0.19141568,84658.0,84657.0,0.0008466]
[1740603161018,0.19141568,84658.0,84657.0,0.00125513]
[1740603161892,0.20996937,84658.0,84657.0,0.00125513]
[1740603164931,0.20996937,84658.0,84657.0,1e-08]
[1740603165136,0.177196,84652.0,84651.0,1e-08]
[1740603167953,0.177214,84643.0,84637.0,0.02]
[1740603168144,0.01423268,84658.0,84642.0,0.00016225]
[1740603168437,0.00911203,84671.0,84663.0,0.02]
[1740603168611,0.09144999,84702.0,84661.0,0.098]
[1740603168612,0.236205,84672.0,84661.0,0.098]
[1740603168819,0.00900195,84673.0,84650.0,0.02]
[1740603169025,0.00900195,84673.0,84656.0,0.02]
[1740603169260,0.02336485,84673.0,84656.0,0.02]
[1740603169470,0.02336485,84673.0,84666.0,0.02]
[1740603170071,0.236207,84672.0,84659.0,0.02]
[1740603170277,0.02336485,84673.0,84659.0,0.02]
[1740603170475,0.02336485,84673.0,84667.0,0.02]
[1740603170898,0.01393465,84680.0,84667.0,0.02]
[1740603171231,0.0004235,84692.0,84667.0,0.02]
[1740603171639,0.236199,84675.0,84659.0,4e-05]
[1740603171864,0.177179,84660.0,84659.0,4e-05]
[1740603172067,0.177179,84660.0,84632.0,0.01452]
[1740603172068,0.177212,84644.0,84634.0,0.00931136]
[1740603172272,0.09440029,84646.0,84619.0,0.00931136]
[1740603172480,0.17726,84621.0,84620.0,0.00931136]
[1740603173246,0.177269,84617.0,84616.0,0.1050878]
[1740603173659,0.177269,84617.0,84616.0,0.10521031]
[1740603174367,0.19156468,84617.0,84616.0,0.10521031]
[1740603176041,0.21012765,84617.0,84616.0,0.10521031]
[1740603176262,0.19156468,84617.0,84616.0,0.00012251]
[1740603176465,0.01429568,84617.0,84616.0,4e-05]
[1740603176666,0.09102669,84631.0,84616.0,4e-05]
[1740603176866,0.177269,84617.0,84616.0,4e-05]
[1740603177727,0.01397746,84617.0,84616.0,0.15229221]
[1740603178047,0.00898175,84638.0,84626.0,0.00931136]
[1740603178213,0.00898175,84638.0,84620.0,0.01452]
[1740603178412,0.17726,84621.0,84620.0,0.01452]
[1740603178629,0.177269,84617.0,84616.0,4e-05]
[1740603179364,0.177284,84610.0,84609.0,0.0034938]
[1740603180854,0.19584723,84610.0,84609.0,0.0034938]
[1740603181305,0.472571,84644.0,84613.0,0.00931136]
[1740603181513,0.177275,84614.0,84613.0,0.00931136]
[1740603181713,0.09452269,84632.0,84613.0,0.00931136]
[1740603181714,0.236344,84623.0,84613.0,0.00931136]
[1740603181934,0.09452269,84632.0,84631.0,0.00931136]
[1740603181935,0.0001224,84632.0,84631.0,0.00931136]
[1740603182381,0.1773594,84632.0,84631.0,0.00931136]
[1740603182595,0.177244,84629.0,84628.0,0.0464]
[1740603183004,0.177273,84615.0,84614.0,0.08961136]
[1740603183249,0.177273,84615.0,84614.0,0.00931136]
[1740603183473,0.0001224,84632.0,84610.0,0.0472]
[1740603183628,0.236322,84630.0,84610.0,0.05651136]
[1740603183830,0.236282,84630.0,84610.0,0.05651136]
[1740603184071,0.177266,84619.0,84618.0,0.00931136]
[1740603185235,0.01856112,84627.0,84602.0,0.00931136]
[1740603185439,0.09440029,84622.0,84595.0,0.03556918]
[1740603185777,0.09102669,84622.0,84614.0,0.00931136]
[1740603185954,0.0001224,84632.0,84618.0,0.00935136]
[1740603186188,0.177265,84619.0,84618.0,0.00935136]
[1740603186576,0.18633843,84619.0,84618.0,0.00935136]
[1740603187947,0.18633843,84619.0,84618.0,8e-05]
[1740603189794,0.00907343,84619.0,84618.0,0.00939136]
[1740603189995,0.0001224,84632.0,84631.0,0.00931136]
[1740603190576,0.177244,84629.0,84628.0,0.00931136]
[1740603190736,0.01868279,84632.0,84628.0,0.00931136]
[1740603191397,0.01868279,84632.0,84631.0,0.00931136]
[1740603192030,0.01868279,84632.0,84631.0,0.02385221]
[1740603192468,0.0001224,84632.0,84631.0,0.02385221]
[1740603192729,0.00872333,84647.0,84632.0,0.01454085]
[1740603192879,0.01855698,84643.0,84642.0,0.00931136]
[1740603193085,0.01855698,84643.0,84642.0,0.02385221]
[1740603193385,0.00990588,84692.0,84651.0,0.00931136]
[1740603193563,0.01397399,84655.0,84651.0,0.02385221]
[1740603193977,0.1776196,84652.0,84651.0,0.00931136]
[1740603194299,0.177198,84651.0,84650.0,0.00931136]
[1740603194891,0.1776196,84652.0,84651.0,0.00931136]
[1740603195083,0.177206,84647.0,84646.0,0.00931136]
[1740603195283,0.177208,84646.0,84645.0,0.00931136]
[1740603195729,0.177206,84647.0,84646.0,0.00923723]
[1740603196153,0.0004236,84652.0,84651.0,0.00931136]
[1740603196398,0.0004236,84652.0,84651.0,0.22376917]
[1740603196604,0.0004236,84652.0,84651.0,0.39045131]
[1740603197012,0.0004236,84652.0,84651.0,0.41446832]
[1740603197214,0.0004235,84692.0,84672.0,0.00931136]
[1740603197418,0.0004235,84692.0,84672.0,0.27276917]
[1740603197572,0.00083213,84673.0,84672.0,0.27276917]
[1740603197938,0.00083213,84673.0,84672.0,0.27779617]
[1740603198362,0.00083213,84673.0,84672.0,0.27276917]
[1740603198557,0.00083213,84673.0,84672.0,0.30833617]
[1740603198956,0.00083213,84673.0,84672.0,0.3507723]
[1740603200379,0.00083213,84673.0,84672.0,0.3152053]
[1740603200583,0.00083213,84673.0,84672.0,0.29682618]
[1740603201534,0.17798413,84673.0,84672.0,0.23328533]
[1740603201735,0.17798413,84673.0,84672.0,0.02405701]
[1740603201906,0.17798413,84673.0,84663.0,0.00931136]
[1740603201907,0.177181,84659.0,84658.0,0.00931136]
[1740603202127,0.177189,84655.0,84654.0,0.018551]
[1740603202322,0.177149,84655.0,84654.0,0.018551]
[1740603202522,0.177214,84643.0,84642.0,0.02379136]
[1740603202722,0.1772,84650.0,84649.0,0.00931136]
[1740603203687,0.236193,84677.0,84649.0,0.00931136]
[1740603203892,0.1772,84650.0,84649.0,0.00931136]
[1740603204195,0.00012249,84669.0,84658.0,0.00931136]
[1740603204393,0.177181,84659.0,84658.0,0.00931136]
[1740603205041,0.00912126,84659.0,84658.0,0.00931136]
[1740603205290,0.00874091,84663.0,84662.0,0.00931136]
[1740603205402,0.00874091,84663.0,84662.0,0.09925221]
[1740603205611,0.177162,84668.0,84663.0,0.01454085]
[1740603205811,0.177173,84663.0,84662.0,0.0754]
[1740603206019,0.177193,84653.0,84652.0,0.00931136]
[1740603206440,0.413438,84656.0,84655.0,0.00931136]
[1740603206887,0.00955005,84673.0,84664.0,0.00931136]
[1740603207112,0.00955005,84673.0,84668.0,0.00931136]
[1740603207529,0.18670205,84673.0,84672.0,0.00931136]
[1740603207960,0.17716,84669.0,84668.0,0.00931136]
[1740603208165,0.236206,84672.0,84665.0,0.00931136]
[1740603208548,0.41336,84672.0,84671.0,0.00931136]
[1740603208749,0.00955005,84673.0,84665.0,0.00931136]
[1740603208895,0.18670205,84673.0,84672.0,0.00931136]
[1740603209273,0.19570537,84672.0,84671.0,0.00931136]